fUST/lending_fUST_20250724
["ID","MTS","AMOUNT","RATE_DAILY","PERIOD"]
[374567813,1753359048574,-460.0,0.00019726,2]
[374567815,1753359048583,-460.0,0.00019726,2]
[374567817,1753359048593,-460.0,0.00019726,2]
[374567818,1753359048603,-460.0,0.00019726,2]
[374567820,1753359048616,-509.37400984,0.00019726,2]
[374567823,1753359048626,-460.0,0.00019726,2]
[374567825,1753359048636,-460.0,0.00019726,2]
[374567827,1753359048646,-460.0,0.00019726,2]
[374567828,1753359048656,-460.0,0.00019726,2]
[374567830,1753359048666,-460.0,0.00019726,2]
[374567832,1753359048676,-460.0,0.00019726,2]
[374567833,1753359048686,-460.0,0.00019726,2]
[374567834,1753359048696,-460.0,0.00019726,2]
[374567835,1753359048706,-460.0,0.00019726,2]
[374567836,1753359048716,-460.0,0.00019726,2]
[374567837,1753359048727,-460.0,0.00019726,2]
[374567838,1753359048737,-460.0,0.00019726,2]
[374567839,1753359048747,-460.0,0.00019726,2]
[374567840,1753359048757,-274.37709703,0.00019726,2]
[374567841,1753359048768,-460.0,0.00019726,2]
[374567842,1753359048780,-460.0,0.00019726,2]
[374567843,1753359048791,-460.0,0.00019726,2]
[374567844,1753359048801,-460.0,0.00019726,2]
[374567845,1753359048811,-466.60950097,0.00019726,2]
[374567846,1753359048821,-460.0,0.00019726,2]
[374567847,1753359048831,-564.69804702,0.00019726,2]
[374567848,1753359048841,-468.04502299,0.00019726,2]
[374567849,1753359048852,-460.0,0.00019726,2]
[374567850,1753359048865,-460.0,0.00019726,2]
[374567851,1753359048875,-460.0,0.00019726,2]
[374567852,1753359048886,-460.0,0.00019726,2]
[374567853,1753359048896,-460.0,0.00019726,2]
[374567854,1753359048907,-460.0,0.00019726,2]
[374567855,1753359048917,-460.0,0.00019726,2]
[374567856,1753359048928,-460.0,0.00019726,2]
[374567857,1753359048938,-460.0,0.00019726,2]
[374567858,1753359048948,-460.0,0.00019726,2]
[374567859,1753359048958,-380.92571922,0.00019726,2]
[374567860,1753359048967,-460.0,0.00019726,2]
[374567861,1753359048978,-460.0,0.00019726,2]
[374567862,1753359048987,-460.0,0.00019726,2]
[374567863,1753359048997,-460.0,0.00019726,2]
[374567864,1753359049007,-460.0,0.00019726,2]
[374567865,1753359049017,-460.0,0.00019726,2]
[374567866,1753359049027,-460.0,0.00019726,2]
[374567867,1753359049037,-460.0,0.00019726,2]
[374567868,1753359049047,-460.0,0.00019726,2]
[374567869,1753359049056,-460.0,0.00019726,2]
[374567870,1753359049066,-460.0,0.00019726,2]
[374567871,1753359049076,-460.0,0.00019726,2]
[374567872,1753359049086,-460.0,0.00019726,2]
[374567873,1753359049096,-460.0,0.00019726,2]
[374567874,1753359049107,-460.0,0.00019726,2]
[374567875,1753359049118,-469.61611987,0.00019726,2]
[374567876,1753359049128,-474.92865728,0.00019726,2]
[374567877,1753359049139,-460.0,0.00019726,2]
[374567878,1753359049149,-460.0,0.00019726,2]
[374567879,1753359049159,-460.0,0.00019726,2]
[374567880,1753359049169,-460.0,0.00019726,2]
[374567881,1753359049180,-460.0,0.00019726,2]
[374567882,1753359049190,-460.0,0.00019726,2]
[374567883,1753359049200,-460.0,0.00019726,2]
[374567884,1753359049209,-460.0,0.00019726,2]
[374567885,1753359049219,-460.0,0.00019726,2]
[374567886,1753359049229,-460.0,0.00019726,2]
[374567887,1753359049239,-460.0,0.00019726,2]
[374567888,1753359049249,-460.0,0.00019726,2]
[374567889,1753359049259,-460.0,0.00019726,2]
[374567890,1753359049268,-460.0,0.00019726,2]
[374567891,1753359049278,-460.0,0.00019726,2]
[374567892,1753359049287,-460.0,0.00019726,2]
[374567893,1753359049297,-460.0,0.00019726,2]
[374567894,1753359049308,-460.0,0.00019726,2]
[374567895,1753359049318,-461.00979763,0.00019726,2]
[374567896,1753359049328,-460.0,0.00019726,2]
[374567897,1753359049338,-460.0,0.00019726,2]
[374567898,1753359049348,-460.0,0.00019726,2]
[374567899,1753359049357,-460.0,0.00019726,2]
[374567900,1753359049367,-460.0,0.00019726,2]
[374567901,1753359049377,-460.0,0.00019726,2]
[374567902,1753359049386,-460.0,0.00019726,2]
[374567903,1753359049396,-451.17953566,0.00019726,2]
[374567904,1753359049412,-465.94155733,0.00019726,2]
[374567905,1753359049422,-460.0,0.00019726,2]
[374567906,1753359049433,-321.01346423,0.00019726,2]
[374567907,1753359049443,-460.0,0.00019726,2]
[374567908,1753359049453,-460.0,0.00019726,2]
[374567909,1753359049463,-460.0,0.00019726,2]
[374567910,1753359049472,-460.0,0.00019726,2]
[374567911,1753359049482,-460.0,0.00019726,2]
[374567912,1753359049492,-460.0,0.00019726,2]
[374567913,1753359049501,-530.38,0.00019726,2]
[374567914,1753359049511,-491.13520333,0.00019726,2]
[374567915,1753359049521,-460.0,0.00019726,2]
[374567916,1753359049531,-261.46451473,0.00019726,2]
[374567917,1753359049540,-526.0849725,0.00019726,2]
[374567918,1753359049549,-464.96229417,0.00019726,2]
[374567919,1753359049560,-374.37198877,0.00019726,2]
[374567920,1753359049579,-598.54,0.00019726,2]
[374567921,1753359049590,-460.0,0.00019726,2]
[374567922,1753359049599,-460.0,0.00019726,2]
[374567923,1753359049610,-589.49,0.00019726,2]
[374567924,1753359049619,-466.48987603,0.00019726,2]
[374567925,1753359049629,-460.0,0.00019726,2]
[374567926,1753359049639,-460.0,0.00019726,2]
[374567927,1753359049648,-460.0,0.00019726,2]
[374567928,1753359049658,-460.0,0.00019726,2]
[374567929,1753359049668,-460.0,0.00019726,2]
[374567930,1753359049679,-460.0,0.00019726,2]
[374567931,1753359049688,-465.68160467,0.00019726,2]
[374567932,1753359049699,-460.0,0.00019726,2]
[374567933,1753359049708,-466.76030675,0.00019726,2]
[374567934,1753359049718,-460.0,0.00019726,2]
[374567935,1753359049728,-460.0,0.00019726,2]
[374567936,1753359049737,-460.0,0.00019726,2]
[374567937,1753359049746,-460.0,0.00019726,2]
[374567938,1753359049756,-174.24416333,0.00019726,2]
[374567939,1753359049766,-460.0,0.00019726,2]
[374567940,1753359049778,-307.15430074,0.00019726,2]
[374567941,1753359049788,-460.0,0.00019726,2]
[374567942,1753359049797,-460.0,0.00019726,2]
[374567943,1753359049807,-2288.96,0.00019726,2]
[374567944,1753359049819,-460.0,0.00019726,2]
[374567945,1753359049829,-460.0,0.00019726,2]
[374567946,1753359049839,-460.0,0.00019726,2]
[374567947,1753359049852,-460.0,0.00019726,2]
[374567948,1753359049863,-3226.86,0.00019726,2]
[374567949,1753359049873,-460.0,0.00019726,2]
[374567950,1753359049883,-460.0,0.00019726,2]
[374567951,1753359049894,-460.0,0.00019726,2]
[374567952,1753359049904,-460.0,0.00019726,2]
[374567953,1753359049913,-461.86415264,0.00019726,2]
[374567954,1753359049924,-460.0,0.00019726,2]
[374567955,1753359049933,-549.71,0.00019726,2]
[374567956,1753359049942,-460.0,0.00019726,2]
[374567957,1753359049952,-460.0,0.00019726,2]
[374567958,1753359049961,-460.0,0.00019726,2]
[374567959,1753359049971,-460.0,0.00019726,2]
[374567960,1753359049980,-1346.17,0.00019726,2]
[374567961,1753359049990,-460.0,0.00019726,2]
[374567962,1753359049999,-460.0,0.00019726,2]
[374567963,1753359050008,-460.0,0.00019726,2]
[374567964,1753359050017,-460.0,0.00019726,2]
[374567965,1753359050027,-460.0,0.00019726,2]
[374567966,1753359050036,-460.0,0.00019726,2]
[374567967,1753359050046,-460.0,0.00019726,2]
[374567968,1753359050055,-1622.45,0.00019726,2]
[374567969,1753359050065,-462.77363585,0.00019726,2]
[374567970,1753359050074,-501.83,0.00019726,2]
[374567971,1753359050083,-460.0,0.00019726,2]
[374567972,1753359050093,-558.57,0.00019726,2]
[374567973,1753359050103,-462.75394641,0.00019726,2]
[374567974,1753359050113,-1151.1,0.00019726,2]
[374567975,1753359050123,-529.81335773,0.00019726,2]
[374567976,1753359050132,-3987.66,0.00019726,2]
[374567977,1753359050142,-460.0,0.00019726,2]
[374567978,1753359050151,-1227.26,0.00019726,2]
[374567979,1753359050160,-599.14,0.00019726,2]
[374567980,1753359050170,-460.0,0.00019726,2]
[374567981,1753359050179,-460.0,0.00019726,2]
[374567982,1753359050189,-460.0,0.00019726,2]
[374567983,1753359050198,-1102.32,0.00019726,2]
[374567984,1753359050208,-460.0,0.00019726,2]
[374567985,1753359050217,-643.03,0.00019726,2]
[374567986,1753359050227,-721.5,0.00019726,2]
[374567987,1753359050237,-536.66,0.00019726,2]
[374567988,1753359050246,-592.39878277,0.00019726,2]
[374567989,1753359050290,-460.0,0.00019726,2]
[374567990,1753359050300,-460.0,0.00019726,2]
[374567991,1753359050309,-460.0,0.00019726,2]
[374567992,1753359050319,-460.0,0.00019726,2]
[374567993,1753359050329,-460.0,0.00019726,2]
[374567994,1753359050338,-460.0,0.00019726,2]
[374567995,1753359050348,-460.0,0.00019726,2]
[374567996,1753359050358,-1239.72,0.00019726,2]
[374567997,1753359050367,-460.0,0.00019726,2]
[374567998,1753359050377,-460.0,0.00019726,2]
[374567999,1753359050387,-460.0,0.00019726,2]
[374568000,1753359050397,-460.0,0.00019726,2]
[374568001,1753359050406,-462.32236347,0.00019726,2]
[374568002,1753359050416,-474.28,0.00019726,2]
[374568003,1753359050425,-460.0,0.00019726,2]
[374568004,1753359050435,-460.0,0.00019726,2]
[374568005,1753359050444,-602.97,0.00019726,2]
[374568006,1753359050454,-461.78484406,0.00019726,2]
[374568007,1753359050465,-695.52,0.00019726,2]
[374568008,1753359050475,-614.93,0.00019726,2]
[374568009,1753359050484,-489.77781074,0.00019726,2]
[374568010,1753359050494,-460.0,0.00019726,2]
[374568011,1753359050504,-172.36816867,0.00019726,2]
[374568012,1753359050514,-460.0,0.00019726,2]
[374568013,1753359050525,-265.30723452,0.00019726,2]
[374568014,1753359050534,-460.0,0.00019726,2]
[374568015,1753359050544,-460.0,0.00019726,2]
[374568016,1753359050553,-280.33966964,0.00019726,2]
[374568017,1753359050563,-460.0,0.00019726,2]
[374568018,1753359050572,-460.0,0.00019726,2]
[374568019,1753359050581,-547.38,0.00019726,2]
[374568020,1753359050591,-460.0,0.00019726,2]
[374568021,1753359050600,-463.24333493,0.00019726,2]
[374568022,1753359050611,-460.0,0.00019726,2]
[374568023,1753359050621,-460.0,0.00019726,2]
[374568024,1753359050631,-460.0,0.00019726,2]
[374568025,1753359050640,-570.67,0.00019726,2]
[374568026,1753359050650,-460.0,0.00019726,2]
[374568027,1753359050660,-460.0,0.00019726,2]
[374568028,1753359050670,-460.0,0.00019726,2]
[374568029,1753359050679,-2410.32,0.00019726,2]
[374568030,1753359050690,-460.0,0.00019726,2]
[374568031,1753359050700,-460.0,0.00019726,2]
[374568032,1753359050710,-460.0,0.00019726,2]
[374568033,1753359050720,-307.41704682,0.00019726,2]
[374568034,1753359050730,-573.06,0.00019726,2]
[374568035,1753359050739,-573.59,0.00019726,2]
[374568036,1753359050749,-460.0,0.00019726,2]
[374568037,1753359050759,-460.0,0.00019726,2]
[374568038,1753359050772,-460.0,0.00019726,2]
[374568039,1753359050785,-460.0,0.00019726,2]
[374568040,1753359050795,-701.0,0.00019726,2]
[374568041,1753359050804,-460.0,0.00019726,2]
[374568042,1753359050814,-1810.46,0.00019726,2]
[374568043,1753359050824,-5756.37,0.00019726,2]
[374568044,1753359050833,-460.0,0.00019726,2]
[374568045,1753359050842,-460.0,0.00019726,2]
[374568046,1753359050853,-959.34,0.00019726,2]
[374568047,1753359050864,-307.44283012,0.00019726,2]
[374568048,1753359050873,-460.0,0.00019726,2]
[374568049,1753359050882,-707.55,0.00019726,2]
[374568050,1753359050892,-460.0,0.00019726,2]
[374568051,1753359050901,-460.0,0.00019726,2]
[374568052,1753359050910,-460.0,0.00019726,2]
[374568053,1753359050919,-944.6,0.00019726,2]
[374568054,1753359050929,-1000.0,0.00019726,2]
[374568055,1753359050938,-460.0,0.00019726,2]
[374568056,1753359050948,-1286.44,0.00019726,2]
[374568057,1753359050958,-460.0,0.00019726,2]
[374568058,1753359050967,-460.0,0.00019726,2]
[374568059,1753359050977,-460.0,0.00019726,2]
[374568060,1753359050987,-460.0,0.00019726,2]
[374568061,1753359050996,-460.0,0.00019726,2]
[374568062,1753359051006,-533.7,0.00019726,2]
[374568063,1753359051015,-460.0,0.00019726,2]
[374568064,1753359051025,-460.0,0.00019726,2]
[374568065,1753359051034,-460.0,0.00019726,2]
[374568066,1753359051044,-764.53,0.00019726,2]
[374568067,1753359051054,-460.0,0.00019726,2]
[374568068,1753359051063,-460.0,0.00019726,2]
[374568069,1753359051073,-460.0,0.00019726,2]
[374568070,1753359051083,-460.0,0.00019726,2]
[374568071,1753359051092,-460.0,0.00019726,2]
[374568072,1753359051102,-460.0,0.00019726,2]
[374568073,1753359051113,-2933.32,0.00019726,2]
[374568074,1753359051123,-460.0,0.00019726,2]
[374568075,1753359051133,-479.16,0.00019726,2]
[374568076,1753359051143,-575.0,0.00019726,2]
[374568077,1753359051153,-3445.18,0.00019726,2]
[374568078,1753359051164,-460.0,0.00019726,2]
[374568079,1753359051174,-460.0,0.00019726,2]
[374568080,1753359051184,-218.68448043,0.00019726,2]
[374568081,1753359051194,-460.81720325,0.00019726,2]
[374568082,1753359051204,-626.2,0.00019726,2]
[374568083,1753359051214,-460.0,0.00019726,2]
[374568084,1753359051223,-460.0,0.00019726,2]
[374568085,1753359051234,-1738.24,0.00019726,2]
[374568086,1753359051244,-460.0,0.00019726,2]
[374568087,1753359051253,-460.0,0.00019726,2]
[374568088,1753359051263,-1496.43,0.00019726,2]
[374568089,1753359051272,-310.41429308,0.00019726,2]
[374568090,1753359051282,-460.0,0.00019726,2]
[374568091,1753359051292,-460.0,0.00019726,2]
[374568092,1753359051302,-464.0589326,0.00019726,2]
[374568093,1753359051311,-460.0,0.00019726,2]
[374568094,1753359051321,-460.0,0.00019726,2]
[374568095,1753359051331,-594.34,0.00019726,2]
[374568096,1753359051340,-460.0,0.00019726,2]
[374568097,1753359051350,-460.0,0.00019726,2]
[374568098,1753359051360,-460.0,0.00019726,2]
[374568099,1753359051370,-460.0,0.00019726,2]
[374568100,1753359051379,-461.39124406,0.00019726,2]
[374568101,1753359051389,-460.0,0.00019726,2]
[374568102,1753359051398,-460.0,0.00019726,2]
[374568103,1753359051407,-460.0,0.00019726,2]
[374568104,1753359051416,-460.0,0.00019726,2]
[374568105,1753359051426,-460.0,0.00019726,2]
[374568106,1753359051436,-460.0,0.00019726,2]
[374568107,1753359051446,-500.0,0.00019726,2]
[374568108,1753359051455,-916.81750488,0.00019892,2]
[374568109,1753359051465,-2101.69450482,0.000199,2]
[374568110,1753359051475,-1362.35217662,0.00019949,2]
[374568111,1753359051485,-500.69980759,0.00019973,2]
[374568112,1753359051494,-500.35759823,0.00019973,2]
[374568113,1753359051504,-501.487689,0.00019973,2]
[374568114,1753359051513,-160.11934557,0.00019973,2]
[374568115,1753359051523,-500.0,0.00019973,2]
[374568116,1753359051533,-500.0,0.00019973,2]
[374568117,1753359051542,-500.0,0.00019973,2]
[374568118,1753359051552,-500.0,0.00019973,2]
[374568119,1753359051561,-500.0,0.00019973,2]
[374568120,1753359051571,-500.0,0.00019973,2]
[374568121,1753359051580,-507.58685935,0.00019973,2]
[374568122,1753359051588,-562.39892855,0.00019973,2]
[374568123,1753359051598,-500.0,0.00019973,2]
[374568124,1753359051608,-2441.96,0.00019999,2]
[374568125,1753359051617,-2441.96,0.00019999,2]
[374568126,1753359051627,-2441.96,0.00019999,2]
[374568127,1753359051637,-13770.23978458,0.0002,2]
[374568128,1753359051646,-460.0,0.0002,2]
[374568129,1753359051656,-477.9,0.0002,2]
[374568130,1753359051666,-460.0,0.0002,2]
[374568131,1753359051675,-460.0,0.0002,2]
[374568132,1753359051685,-460.0,0.0002,2]
[374568133,1753359051695,-460.0,0.0002,2]
[374568134,1753359051705,-460.0,0.0002,2]
[374568135,1753359051715,-495.41995814,0.0002,2]
[374568136,1753359051725,-460.0,0.0002,2]
[374568137,1753359051734,-460.0,0.0002,2]
[374568138,1753359051744,-460.0,0.0002,2]
[374568139,1753359051754,-151.80139244,0.0002,2]
[374568140,1753359051764,-460.0,0.0002,2]
[374568141,1753359051777,-430.27128955,0.0002,2]
[374568142,1753359051787,-460.0,0.0002,2]
[374568143,1753359051798,-460.0,0.0002,2]
[374568144,1753359051808,-460.0,0.0002,2]
[374568145,1753359051821,-460.0,0.0002,2]
[374568146,1753359051831,-460.0,0.0002,2]
[374568147,1753359051841,-460.0,0.0002,2]
[374568148,1753359051852,-364.44,0.0002,2]
[374568149,1753359051863,-460.0,0.0002,2]
[374568150,1753359051872,-460.0,0.0002,2]
[374568151,1753359051882,-460.0,0.0002,2]
[374568152,1753359051892,-591.63,0.0002,2]
[374568153,1753359051901,-460.0,0.0002,2]
[374568154,1753359051910,-460.0,0.0002,2]
[374568155,1753359051920,-460.0,0.0002,2]
[374568156,1753359051929,-460.0,0.0002,2]
[374568157,1753359051940,-460.0,0.0002,2]
[374568158,1753359051949,-460.0,0.0002,2]
[374568159,1753359051958,-460.0,0.0002,2]
[374568160,1753359051968,-460.0,0.0002,2]
[374568161,1753359051978,-463.93788713,0.0002,2]
[374568162,1753359051987,-460.0,0.0002,2]
[374568163,1753359051996,-460.0,0.0002,2]
[374568164,1753359052006,-460.0,0.0002,2]
[374568165,1753359052015,-460.0,0.0002,2]
[374568166,1753359052026,-460.0,0.0002,2]
[374568167,1753359052035,-460.0,0.0002,2]
[374568168,1753359052045,-460.0,0.0002,2]
[374568169,1753359052055,-460.0,0.0002,2]
[374568170,1753359052065,-460.0,0.0002,2]
[374568171,1753359052075,-460.0,0.0002,2]
[374568172,1753359052084,-460.0,0.0002,2]
[374568173,1753359052094,-460.0,0.0002,2]
[374568174,1753359052104,-158.40065603,0.0002,2]
[374568175,1753359052115,-460.0,0.0002,2]
[374568176,1753359052126,-460.0,0.0002,2]
[374568177,1753359052136,-460.0,0.0002,2]
[374568178,1753359052146,-460.0,0.0002,2]
[374568179,1753359052156,-460.0,0.0002,2]
[374568180,1753359052166,-460.0,0.0002,2]
[374568181,1753359052176,-460.0,0.0002,2]
[374568182,1753359052185,-177.98277192,0.0002,2]
[374568183,1753359052195,-460.0,0.0002,2]
[374568184,1753359052205,-460.0,0.0002,2]
[374568185,1753359052215,-460.0,0.0002,2]
[374568186,1753359052225,-460.0,0.0002,2]
[374568187,1753359052235,-462.30710007,0.0002,2]
[374568188,1753359052246,-460.0,0.0002,2]
[374568189,1753359052256,-460.0,0.0002,2]
[374568190,1753359052266,-460.0,0.0002,2]
[374568191,1753359052276,-460.0,0.0002,2]
[374568192,1753359052286,-460.0,0.0002,2]
[374568193,1753359052295,-460.0,0.0002,2]
[374568194,1753359052305,-460.0,0.0002,2]
[374568195,1753359052315,-460.0,0.0002,2]
[374568196,1753359052325,-460.0,0.0002,2]
[374568197,1753359052335,-460.0,0.0002,2]
[374568198,1753359052345,-460.0,0.0002,2]
[374568199,1753359052354,-460.0,0.0002,2]
[374568200,1753359052365,-460.0,0.0002,2]
[374568201,1753359052375,-460.0,0.0002,2]
[374568202,1753359052385,-460.0,0.0002,2]
[374568203,1753359052395,-460.0,0.0002,2]
[374568204,1753359052404,-464.1477962,0.0002,2]
[374568205,1753359052414,-460.0,0.0002,2]
[374568206,1753359052423,-530.38,0.0002,2]
[374568207,1753359052433,-460.0,0.0002,2]
[374568208,1753359052443,-598.54,0.0002,2]
[374568209,1753359052453,-460.0,0.0002,2]
[374568210,1753359052462,-460.0,0.0002,2]
[374568211,1753359052472,-589.49,0.0002,2]
[374568212,1753359052481,-561.02712397,0.0002,2]
[374568213,1753359052491,-464.2520777,0.0002,2]
[374568214,1753359052501,-240.14415653,0.0002,2]
[374568215,1753359052511,-460.0,0.0002,2]
[374568216,1753359052521,-466.98934807,0.0002,2]
[374568217,1753359052532,-460.0,0.0002,2]
[374568218,1753359052541,-460.0,0.0002,2]
[374568219,1753359052551,-460.0,0.0002,2]
[374568220,1753359052561,-460.0,0.0002,2]
[374568221,1753359052571,-460.0,0.0002,2]
[374568222,1753359052581,-460.0,0.0002,2]
[374568223,1753359052590,-460.0,0.0002,2]
[374568224,1753359052600,-2288.96,0.0002,2]
[374568225,1753359052610,-460.0,0.0002,2]
[374568226,1753359052619,-460.0,0.0002,2]
[374568227,1753359052630,-3226.86,0.0002,2]
[374568228,1753359052640,-247.99936475,0.0002,2]
[374568229,1753359052650,-460.0,0.0002,2]
[374568230,1753359052659,-460.0,0.0002,2]
[374568231,1753359052669,-460.0,0.0002,2]
[374568232,1753359052679,-460.0,0.0002,2]
[374568233,1753359052689,-549.71,0.0002,2]
[374568234,1753359052699,-464.01772172,0.0002,2]
[374568235,1753359052708,-460.0,0.0002,2]
[374568236,1753359052718,-460.0,0.0002,2]
[374568237,1753359052728,-460.0,0.0002,2]
[374568238,1753359052738,-1346.17,0.0002,2]
[374568239,1753359052748,-485.63493266,0.0002,2]
[374568240,1753359052758,-460.0,0.0002,2]
[374568241,1753359052769,-460.0,0.0002,2]
[374568242,1753359052781,-460.0,0.0002,2]
[374568243,1753359052791,-460.0,0.0002,2]
[374568244,1753359052801,-460.0,0.0002,2]
[374568245,1753359052812,-462.79929431,0.0002,2]
[374568246,1753359052822,-1622.45,0.0002,2]
[374568247,1753359052832,-501.83,0.0002,2]
[374568248,1753359052842,-558.57,0.0002,2]
[374568249,1753359052852,-460.0,0.0002,2]
[374568250,1753359052862,-1151.1,0.0002,2]
[374568251,1753359052872,-3987.66,0.0002,2]
[374568252,1753359052882,-460.0,0.0002,2]
[374568253,1753359052892,-500.0,0.0002,2]
[374568254,1753359052902,-1227.26,0.0002,2]
[374568255,1753359052912,-599.14,0.0002,2]
[374568256,1753359052922,-460.0,0.0002,2]
[374568257,1753359052931,-460.0,0.0002,2]
[374568258,1753359052941,-1102.32,0.0002,2]
[374568259,1753359052951,-375.11701123,0.0002,2]
[374568260,1753359052961,-643.03,0.0002,2]
[374568261,1753359052971,-721.5,0.0002,2]
[374568262,1753359052981,-536.66,0.0002,2]
[374568263,1753359052991,-460.0,0.0002,2]
[374568264,1753359053001,-460.0,0.0002,2]
[374568265,1753359053011,-460.0,0.0002,2]
[374568266,1753359053021,-522.89380388,0.0002,2]
[374568267,1753359053031,-460.0,0.0002,2]
[374568268,1753359053041,-460.0,0.0002,2]
[374568269,1753359053052,-460.0,0.0002,2]
[374568270,1753359053062,-1239.72,0.0002,2]
[374568271,1753359053072,-464.16385009,0.0002,2]
[374568272,1753359053082,-460.0,0.0002,2]
[374568273,1753359053092,-460.0,0.0002,2]
[374568274,1753359053102,-460.0,0.0002,2]
[374568275,1753359053114,-474.28,0.0002,2]
[374568276,1753359053124,-460.0,0.0002,2]
[374568277,1753359053134,-460.0,0.0002,2]
[374568278,1753359053144,-695.52,0.0002,2]
[374568279,1753359053155,-614.93,0.0002,2]
[374568280,1753359053165,-460.0,0.0002,2]
[374568281,1753359053292,-460.0,0.0002,2]
[374568282,1753359053303,-460.0,0.0002,2]
[374568283,1753359053314,-602.97,0.0002,2]
[374568284,1753359053323,-460.0,0.0002,2]
[374568285,1753359053333,-460.0,0.0002,2]
[374568286,1753359053343,-460.0,0.0002,2]
[374568287,1753359053352,-547.38,0.0002,2]
[374568288,1753359053363,-460.0,0.0002,2]
[374568289,1753359053372,-460.0,0.0002,2]
[374568290,1753359053382,-460.0,0.0002,2]
[374568291,1753359053391,-174.129262,0.0002,2]
[374568292,1753359053401,-460.0,0.0002,2]
[374568293,1753359053410,-570.67,0.0002,2]
[374568294,1753359053420,-460.0,0.0002,2]
[374568295,1753359053429,-460.0,0.0002,2]
[374568296,1753359053439,-2410.32,0.0002,2]
[374568297,1753359053449,-460.0,0.0002,2]
[374568298,1753359053458,-460.0,0.0002,2]
[374568299,1753359053468,-312.12063131,0.0002,2]
[374568300,1753359053477,-573.06,0.0002,2]
[374568301,1753359053487,-573.59,0.0002,2]
[374568302,1753359053496,-460.0,0.0002,2]
[374568303,1753359053506,-460.0,0.0002,2]
[374568304,1753359053516,-460.0,0.0002,2]
[374568305,1753359053527,-701.0,0.0002,2]
[374568306,1753359053537,-460.0,0.0002,2]
[374568307,1753359053547,-1810.46,0.0002,2]
[374568308,1753359053557,-5756.37,0.0002,2]
[374568309,1753359053567,-460.0,0.0002,2]
[374568310,1753359053577,-460.0,0.0002,2]
[374568311,1753359053588,-959.34,0.0002,2]
[374568312,1753359053600,-460.0,0.0002,2]
[374568313,1753359053610,-707.55,0.0002,2]
[374568314,1753359053621,-215.95119484,0.0002,2]
[374568315,1753359053631,-460.0,0.0002,2]
[374568316,1753359053641,-460.0,0.0002,2]
[374568317,1753359053650,-944.6,0.0002,2]
[374568318,1753359053659,-384.1219606,0.0002,2]
[374568319,1753359053669,-460.0,0.0002,2]
[374568320,1753359053678,-1286.44,0.0002,2]
[374568321,1753359053687,-460.0,0.0002,2]